[Event "Israel-ch Semi-final 2022"]
[Site "Ramat Gan"]
[Date "2022.06.13"]
[Round "6.9"]
[White "Horesh, Tal"]
[Black "Stolyarsky, Yegor"]
[Result "1/2-1/2"]
[ECO "C68"]
[WhiteElo "1973"]
[BlackElo "2174"]
[Annotator "RC"]
[PlyCount "132"]
[EventDate "2022.05.09"]
[EventType "swiss"]
[EventCountry "ISR"]
[SourceTitle "playchess.com"]
[Source "ChessBase"]
[SourceQuality "1"]
[TimeControl "40/5400+30:1800+30"]

1. e4 {[%emt 0:00:08]} e5 {[%emt 0:00:47]} 2. Nf3 {[%emt 0:00:09]} Nc6 {[%emt 0:00:21]} 3. Bb5 {[%emt 0:00:15]} a6 {[%emt 0:00:15]} 4. Bxc6 {[%emt 0:00:19]} dxc6 {[%emt 0:00:11]} 5. O-O {[%emt 0:00:12]} Qd6 {[%emt 0:00:24]} 6. Na3 {[%emt 0:00:41]} b5 {[%emt 0:01:02]} 7. Qe2 {[%emt 0:00:56]} Bb7 {[%emt 0:01:51]} 8. d4 {[%emt 0:03:24]} exd4 {[%emt 0:00:37]} 9. Rd1 {[%emt 0:00:27]} Qg6 {[%emt 0:03:49]} 10. Rxd4 {[%emt 0:07:32]} Bc5 {[%emt 0:01:23]} 11. Rd3 {[%emt 0:02:57]} Nf6 {[%emt 0:04:15]} 12. Be3 {[%emt 0:12:08]} Bxe3 {[%emt 0:08:00]} 13. Qxe3 {[%emt 0:01:12]} O-O {[%emt 0:01:59]} 14. Qg5 {[%emt 0:15:18]} Qxg5 {[%emt 0:04:31]} 15. Nxg5 {[%emt 0:00:02]} h6 {[%emt 0:00:10]} 16. e5 {[%emt 0:01:03]} hxg5 {[%emt 0:03:20]} 17. exf6 {[%emt 0:00:03]} gxf6 {[%emt 0:00:07]} 18. Rd7 {[%emt 0:01:05]} Rac8 {[%emt 0:00:20]} 19. c4 {[%emt 0:02:26]} Rfd8 {[%emt 0:03:50]} 20. Rad1 {[%emt 0:00:34]} Rxd7 {[%emt 0:00:09]} 21. Rxd7 {[%emt 0:00:05]} Kf8 {[%emt 0:00:43]} 22. c5 {[%emt 0:02:32]} Ke8 {[%emt 0:01:59]} 23. Rd4 {[%emt 0:00:50]} a5 {[%emt 0:01:46]} 24. Nc2 {[%emt 0:01:31]} b4 {[%emt 0:04:52]} 25. f3 {[%emt 0:05:32]} Ra8 {[%emt 0:05:33]} 26. g3 {[%emt 0:05:03]} Bc8 {[%emt 0:00:26]} 27. Ne3 {[%emt 0:05:05]} Be6 {[%emt 0:00:14]} 28. b3 {[%emt 0:03:03]} Rb8 {[%emt 0:01:35]} 29. f4 {[%emt 0:09:23]} Rb5 {[%emt 0:04:12]} 30. f5 {[%emt 0:01:06]} Bd5 {[%emt 0:00:17]} 31. h4 {[%emt 0:03:31]} Rxc5 {[%emt 0:03:38]} 32. h5 {[%emt 0:01:43]} Kf8 {[%emt 0:00:44]} 33. Kf2 {[%emt 0:04:02]} Kg7 {[%emt 0:01:39]} 34. Rd2 {[%emt 0:01:49]} a4 {[%emt 0:03:09]} 35. Rd4 {[%emt 0:06:51]} Rb5 {[%emt 0:03:20]} 36. bxa4 {[%emt 0:00:43]} Rb6 {[%emt 0:00:06]} 37. Nxd5 {[%emt 0:01:12]} cxd5 {[%emt 0:00:06]} 38. Rxd5 {[%emt 0:00:01]} Ra6 {[%emt 0:03:09]} 39. a5 {[%emt 0:02:20]} g4 {[%emt 0:04:39]} 40. Rc5 {[%emt 0:02:10]} Kh6 {[%emt 0:02:04]} 41. Rxc7 {[%emt 0:31:03]} Rxa5 {[%emt 0:31:39]} 42. Rxf7 {[%emt 0:00:00]} Rxa2+ {[%emt 0:00:00]} 43. Ke3 {[%emt 0:00:00]} Kg5 {[%emt 0:00:00]} 44. h6 {[%emt 0:00:00]} Rg2 {[%emt 0:00:00]} 45. Ke4 {[%emt 0:00:00]} Re2+ {[%emt 0:00:00]} 46. Kd3 {[%emt 0:00:00]} Rh2 {[%emt 0:00:00]} 47. Ke4 {[%emt 0:00:00]} Re2+ {[%emt 0:00:00]} 48. Kd3 {[%emt 0:00:00]} Re8 {[%emt 0:00:00]} 49. Rg7+ {[%emt 0:00:00]} Kxf5 {[%emt 0:00:00]} 50. h7 {[%emt 0:00:00]} Rh8 {[%emt 0:00:00]} 51. Kc4 {[%emt 0:00:00]} Ke5 {[%emt 0:00:00]} 52. Kxb4 {[%emt 0:00:00]} f5 {[%emt 0:00:00]} 53. Kc5 {[%emt 0:00:00]} Kf6 {[%emt 0:00:00]} 54. Rd7 {[%emt 0:00:00]} Kg6 {[%emt 0:00:00]} 55. Rd6+ {[%emt 0:00:00]} Kg5 {[%emt 0:00:00]} 56. Rd7 {[%emt 0:00:00]} Kg6 {[%emt 0:00:00]} 57. Rd6+ {[%emt 0:00:00]} Kxh7 {[%emt 0:00:00]} 58. Rf6 {[%emt 0:00:00]} Kg7 {[%emt 0:00:00]} 59. Rxf5 {[%emt 0:00:00]} Kg6 {[%emt 0:00:00]} 60. Rd5 {[%emt 0:00:00]} Rf8 {[%emt 0:00:00]} 61. Kd4 {[%emt 0:00:00]} Re8 {[%emt 0:00:00]} 62. Rd6+ {[%emt 0:00:00]} Kf5 {[%emt 0:00:00]} 63. Rd5+ {[%emt 0:00:00]} Kf6 {[%emt 0:00:00]} 64. Rd6+ {[%emt 0:00:00]} Ke7 {[%emt 0:00:00]} 65. Rg6 {[%emt 0:00:00]} Ra8 {[%emt 0:00:00]} 66. Ke4 {[%emt 0:00:00]} Kf7 {[%emt 0:00:00]} 1/2-1/2

[Event "Israel-ch Semi-final 2022"]
[Site "Ramat Gan"]
[Date "2022.06.13"]
[Round "6.10"]
[White "Duchan, Yoav"]
[Black "Shimshovich, Asaf"]
[Result "0-1"]
[ECO "B40"]
[WhiteElo "1899"]
[BlackElo "1816"]
[Annotator "NA RC COMBH"]
[PlyCount "74"]
[EventDate "2022.05.09"]
[EventType "swiss"]
[EventCountry "ISR"]
[SourceTitle "playchess.com"]
[Source "ChessBase"]
[SourceQuality "1"]
[TimeControl "40/5400+30:1800+30"]

1. e4 {[%emt 0:26:54]} c5 {[%emt 0:00:07]} 2. Nf3 {[%emt 0:00:08]} e6 {[%emt 0:00:04]} 3. d4 {[%emt 0:01:18]} cxd4 {[%emt 0:00:06]} 4. Nxd4 {[%emt 0:00:02]} Nf6 {[%emt 0:00:09]} 5. Bd3 {[%emt 0:00:59]} Nc6 {[%emt 0:00:12]} 6. Ne2 {[%emt 0:00:52]} Ne5 {[%emt 0:04:02]} 7. Nbc3 {[%emt 0:01:10]} Nxd3+ {[%emt 0:04:35]} 8. Qxd3 {[%emt 0:01:14]} d5 {[%emt 0:09:35]} 9. Bg5 {[%emt 0:05:57]} Be7 {[%emt 0:08:14]} 10. Bxf6 {[%emt 0:06:59]} Bxf6 {[%emt 0:00:12]} 11. exd5 {[%emt 0:02:09]} exd5 {[%emt 0:00:23]} 12. O-O-O {[%emt 0:04:59]} O-O {[%emt 0:03:15]} 13. Qxd5 {[%emt 0:04:00]} Qb6 {[%emt 0:02:03]} 14. Qf3 {[%emt 0:05:45]} Be6 {[%emt 0:04:02]} 15. Kb1 {[%emt 0:03:45]} Rac8 {[%emt 0:02:12]} 16. Qe3 {[%emt 0:05:05]} Qa5 {[%emt 0:05:48]} 17. a3 {[%emt 0:03:10]} Rfe8 {[%emt 0:16:57]} 18. Qd2 {[%emt 0:07:34]} Qb6 {[%emt 0:06:57]} 19. Ka1 {[%emt 0:02:33]} Bc4 {[%emt 0:05:12]} 20. Nf4 {[%emt 0:07:09]} Bxc3 {[%emt 0:04:44]} 21. Qxc3 {[%emt 0:00:09]} Be2 {[%emt 0:00:42]} 22. Qd2 {[%emt 0:03:42]} Bxd1 {[%emt 0:03:14]} 23. Rxd1 {[%emt 0:00:01]} h6 {[%emt 0:01:43]} 24. Kb1 {[%emt 0:01:52]} Qc7 {[%emt 0:01:31]} 25. h4 {[%emt 0:01:24]} Rcd8 {[%emt 0:02:29]} 26. Nd5 {[%emt 0:00:27]} Qc4 {[%emt 0:01:19]} 27. b3 {[%emt 0:02:59]} Qxh4 {[%emt 0:00:40]} 28. Qa5 {[%emt 0:00:33]} Kh8 {[%emt 0:03:11]} 29. Qxa7 {[%emt 0:01:01]} Qh5 {[%emt 0:02:15]} 30. Qd4 {[%emt 0:00:01]} Re5 {[%emt 0:01:51]} 31. c4 {[%emt 0:00:11]} Re2 {[%emt 0:02:44]} 32. Qb6 $2 {[%emt 0:01:46]} (32. Rd2 $19) 32... Rde8 {[%emt 0:00:17]} (32... Qf5+ $142 33. Ka1 Ra8 34. Qd8+ Rxd8 35. Rc1 Qe5+ 36. Nc3 {[#]} Qxc3+ $3 {[%mdl 512]} 37. Rxc3 Rd1+ 38. Rc1 Rxc1#) 33. Ne3 {[%emt 0:00:37] [#]} R2xe3 $19 {[%emt 0:01:15]} 34. Rc1 {[%emt 0:00:31]} Qf5+ {[%emt 0:00:42]} 35. Kb2 {[%emt 0:00:16]} Qe5+ {[%emt 0:00:38]} 36. Kb1 {[%emt 0:00:10]} Re2 {[%emt 0:00:22]} 37. Rc2 {[%emt 0:00:01]} Re1+ {[%emt 0:00:17]} 0-1

[Event "Israel-ch Semi-final 2022"]
[Site "Ramat Gan"]
[Date "2022.06.20"]
[Round "7.1"]
[White "Mordechai, Hanan"]
[Black "Dvoirys, Semen I."]
[Result "1-0"]
[ECO "B97"]
[WhiteElo "2313"]
[BlackElo "2439"]
[Annotator "TA"]
[PlyCount "66"]
[EventDate "2022.05.09"]
[EventType "swiss"]
[EventCountry "ISR"]
[SourceTitle "playchess.com"]
[Source "ChessBase"]
[SourceQuality "1"]
[TimeControl "40/5400+30:1800+30"]

{[%evp 20,66,-42,-63,-54,-52,0,0,0,-19,0,0,0,0,0,0,0,-22,0,0,0,0,0,0,0,0,41,14,12,-297,-274,-327,-315,-316,-304,-385,-358,-429,-408,-426,-402,-391,597,564,1047,11,29988,29989,29999]} 1. e4 {[%emt 0:00:04]} c5 {[%emt 0:00:06]} 2. Nf3 {[%emt 0:00:05]} d6 {[%emt 0:00:14]} 3. d4 {[%emt 0:00:05]} cxd4 {[%emt 0:00:04]} 4. Nxd4 {[%emt 0:00:04]} Nf6 {[%emt 0:00:04]} 5. Nc3 {[%emt 0:00:05]} a6 {[%emt 0:00:03]} 6. Bg5 {[%emt 0:00:11]} e6 {[%emt 0:00:09]} 7. f4 {[%emt 0:00:05]} Qb6 {[%emt 0:00:35]} 8. Qd2 {[%emt 0:00:10]} Qxb2 {[%emt 0:00:06]} 9. Rb1 {[%emt 0:00:03]} Qa3 {[%emt 0:00:06]} 10. e5 {[%emt 0:00:16]} h6 {[%emt 0:00:12]} 11. Bh4 {[%emt 0:00:05]} (11. exf6 hxg5 12. fxg7 (12. fxg5 gxf6 13. Nf3 fxg5 $19) 12... Bxg7 13. fxg5 Qc5 $17) 11... dxe5 {[%emt 0:00:38] B97: Sicilian Najdorf: Poisoned Pawn.} 12. fxe5 {[%emt 0:00:06]} g5 {[%emt 0:00:11] 12...Nfd7 deserves study.} 13. exf6 {[%emt 0:00:20]} gxh4 {[%emt 0:00:09] The position is equal.} 14. Be2 $1 {[%emt 0:00:32]} Qa5 {[%emt 0:13:15]} 15. O-O {[%emt 0:01:57]} Nd7 {[%emt 0:00:30]} 16. Kh1 {[%emt 0:01:07] 16.Rbd1 is vanishing.} Qg5 {[%emt 0:11:06]} 17. Qd3 {[%emt 0:00:13] Threatens to win with Ne4.} Nc5 {[%emt 0:00:40]} 18. Qc4 {[%emt 0:00:13]} Bd7 {[%emt 0:07:59]} 19. Bf3 {[%emt 0:41:19]} Rc8 {[%emt 0:03:57][%cal Oc5a4] ...Na4! is the strong threat.} 20. Qe2 $1 {[%emt 0:02:01]} Bd6 $40 {[%emt 0:12:10][%mdl 128] Strongly threatening ...Qf4. Black mounts an attack.} (20... Qxf6 21. Rbd1 Qe7 22. Bh5 $16) 21. Bxb7 {[%emt 0:08:38] was the old line (21.Ne4).} Nxb7 {[%emt 0:03:45]} 22. Ne4 {[%emt 0:00:17] [#] The board is on fire.} Qd5 $146 {[%emt 0:12:29][%csl LRa2,LRd4] [#]} ({Predecessor:} 22... Qe5 23. Nxd6+ Qxd6 24. Nf5 Qc6 25. Rxb7 h3 26. Rf3 Kd8 27. Rfb3 Qxg2+ 28. Qxg2 hxg2+ 29. Kg1 exf5 30. Rd3 Rc7 31. Rb8+ {½-½ (31) Bescos Anzano,M (2557)-Wunderlich,H (2572) ICCF email 2018}) 23. Rxb7 $1 {[%emt 0:04:59]} h3 {[%emt 0:10:58] [#]} (23... Qxd4 $2 24. Rd1 Qxe4 25. Qxe4 $18) (23... Be5 $5 {[%cal Rd5b7]} 24. Nf3 Bf4 $11) (23... Be5 24. Nf3) 24. Nf3 $2 {[%emt 0:23:22][%mdl 8192]} hxg2+ $19 {[%emt 0:00:57]} 25. Kxg2 {[%emt 0:00:01]} Bf4 {[%emt 0:01:52]} 26. Rxd7 {[%emt 0:08:22]} Qxd7 {[%emt 0:00:20]} (26... Kxd7 $2 27. Rd1 $18) 27. Rd1 {[%emt 0:00:14]} Qb5 {[%emt 0:02:49]} ({Wrong is} 27... Qa4 $2 28. Nd4 Rg8+ 29. Kh1 $19) 28. Rd3 {[%emt 0:01:43]} Rg8+ {[%emt 0:02:11]} 29. Kf1 {[%emt 0:01:40]} Qb1+ {[%emt 0:00:56]} 30. Ne1 {[%emt 0:00:08]} Qxa2 {[%emt 0:02:33][%mdl 8192] [#]} (30... Qb6 $19 {[%csl Gb6][%cal Rg8g1] avoids the disaster.} 31. Nf3 Rc4 32. Rd8+ Kxd8 33. Qxc4 Bxh2 $1 {[%mdl 512]}) 31. Qf2 $18 {[%emt 0:00:53] Inhibits Rg1+.} Bb8 {[%emt 0:02:01] Prevents Qa7. aiming for ...Rg4.} 32. Qb6 $2 {[%emt 0:01:37]} (32. Qd4 $18 {White wants to mate with Qd7+.} Qd5 33. Qb4 Rg1+ 34. Kxg1 Ba7+ 35. Kf1) 32... Qa1 $2 {[%emt 0:06:48][%mdl 8192]} (32... Bxh2 {gets mated.} 33. Nd6+ Kf8 34. Nxc8 Rg1+ 35. Qxg1) (32... Qc4 $2 33. Qb7 Qc7 34. Nd6+ Kf8 {[#]} 35. Nxc8 $1 $18) (32... e5 $11 33. Rc3 (33. Qb7 Qe6 $17) 33... Rxc3 34. Qxb8+ Kd7 35. Qd6+ Kc8 36. Nxc3 Qc4+ 37. Ne2 e4) 33. Qb4 {[%emt 0:01:38][%csl Gf6][%cal Rb4e7]} e5 {[%emt 0:07:07] Weighted Error Value: White=0.47/Black=0.74} 1-0

[Event "Israel-ch Semi-final 2022"]
[Site "Ramat Gan"]
[Date "2022.06.20"]
[Round "7.2"]
[White "Tzidkiya, Yeshaayahu"]
[Black "Zemach, Nadav"]
[Result "1-0"]
[ECO "C44"]
[WhiteElo "2430"]
[BlackElo "2238"]
[Annotator "TA"]
[PlyCount "123"]
[EventDate "2022.05.09"]
[EventType "swiss"]
[EventCountry "ISR"]
[SourceTitle "playchess.com"]
[Source "ChessBase"]
[SourceQuality "1"]
[TimeControl "40/5400+30:1800+30"]

{[%evp 10,123,0,0,6,21,35,25,45,0,0,0,19,40,21,15,19,0,8,4,0,0,0,-8,0,0,0,0,46,30,65,33,66,62,62,42,39,48,92,106,86,50,75,-10,20,12,18,32,92,81,81,81,81,81,89,81,87,87,87,87,87,54,156,147,131,126,151,151,395,389,380,373,489,489,706,706,1470,1993,1264,1983,2195,2095,1984,1737,5004,4015,2102,2226,12842,11266,29969,29966,29978,29979,29979,29980,29983,29984,29984,29984,29985,29983,29983,29984,29987,29988,29988,29989,29989,29989,29990,29990,29990,29991,29991,29992]} 1. e4 {[%emt 0:00:09]} e5 {[%emt 0:00:05]} 2. Nf3 {[%emt 0:00:04]} Nc6 {[%emt 0:00:03]} 3. g3 {[%emt 0:00:57]} Nf6 {[%emt 0:02:59]} 4. d3 {[%emt 0:00:05]} d5 {[%emt 0:06:14]} 5. exd5 {[%emt 0:00:08]} Nxd5 {[%emt 0:01:04]} 6. Bg2 {[%emt 0:00:07]} g6 {[%emt 0:05:29] 6...Bc5 is the modern continuation. C44: Ponziani Opening and Scotch Gambit.} 7. Nc3 {[%emt 0:02:58] [#]} Nb6 $146 {[%emt 0:05:00]} ({Predecessor:} 7... Bg7 8. O-O O-O 9. Nxd5 Qxd5 10. Re1 Qd6 11. Nd2 Re8 12. Ne4 Qd8 13. c3 h6 14. b4 Kh7 15. h4 f5 16. Bg5 Qd7 {0-1 (49) Rapport,R (2763)-Amin,B (2680) Warsaw 2021}) 8. a4 {[%emt 0:17:23]} a5 {[%emt 0:02:27] White has an edge.} 9. Be3 {[%emt 0:01:01]} Bg7 $1 {[%emt 0:00:48]} 10. Bc5 {[%emt 0:03:48]} Nd7 {[%emt 0:04:42]} 11. Ba3 {[%emt 0:00:15]} Nb4 {[%emt 0:01:26]} 12. O-O {[%emt 0:07:24]} O-O $1 {[%emt 0:00:46]} 13. Re1 {[%emt 0:06:08]} Re8 $1 {[%emt 0:01:00]} 14. d4 {[%emt 0:19:23]} exd4 {[%emt 0:04:36]} 15. Rxe8+ {[%emt 0:00:07]} Qxe8 {[%emt 0:00:07]} 16. Nb5 {[%emt 0:00:04]} Qd8 {[%emt 0:01:40][%cal Od4d3]} 17. Nbxd4 {[%emt 0:04:54]} Nb6 {[%emt 0:11:30]} 18. c3 $36 {[%emt 0:04:37][%mdl 2048] Black is under pressure.} N4d5 {[%emt 0:08:15]} (18... c5 $1 $11 {should be considered.}) 19. Qb3 $14 {[%emt 0:00:30]} Bd7 {[%emt 0:00:30]} 20. Nb5 {[%emt 0:00:30]} c6 21. Nd6 {[%emt 0:30:28]} Qc7 {[%emt 0:01:00] [#]} 22. Nxf7 $1 {[%emt 0:00:00]} Kxf7 {[%emt 0:01:09]} 23. c4 {[%emt 0:00:00]} Nf6 {[%emt 0:04:44] [#]} (23... Nb4 $2 24. Bxb4 axb4 25. c5+ Nd5 26. Ng5+ Ke7 27. Bxd5 $18) 24. Bd6 {[%emt 0:00:00]} Qd8 {[%emt 0:03:20]} 25. Ng5+ $1 {[%emt 0:01:18]} Kg8 {[%emt 0:00:09]} 26. Re1 {[%emt 0:00:40] 0x0.000bd68b5ac5dp-1022s more active pieces.} (26. Rd1 $1 $16 {c5+ is the strong threat.} Bf5 27. c5+ (27. Be5 Qe8 $11) 27... Nfd5 28. Rxd5) 26... Bf8 {[%emt 0:04:40]} 27. Bxf8 {[%emt 0:00:28]} Kxf8 {[%emt 0:00:07]} 28. Rd1 $1 {[%emt 0:00:30]} Kg8 {[%emt 0:09:03]} ({Black should try} 28... h6 $1 $14 29. Ne6+ Bxe6 30. Rxd8+ Rxd8) 29. c5+ $1 $16 {[%emt 0:00:31]} Nbd5 {[%emt 0:00:09]} 30. Bxd5+ {[%emt 0:00:06]} cxd5 {[%emt 0:03:05]} (30... Nxd5 $2 31. Rxd5 cxd5 32. Qxd5+ Kg7 33. Qf7+ Kh6 34. f4 $18) 31. Rxd5 {[%emt 0:00:05]} Kg7 {[%emt 0:03:05]} (31... Nxd5 $2 32. Qxd5+ Kg7 33. Qf7+ Kh6 34. f4 $18) 32. Ne6+ $1 {[%emt 0:00:58]} Bxe6 {[%emt 0:00:07]} 33. Rxd8 {[%emt 0:00:01]} Bxb3 {[%emt 0:00:09]} 34. Rxa8 {[%emt 0:00:02]} Bxa4 {[%emt 0:00:09]} 35. Rxa5 {[%emt 0:00:07]} Bc6 {[%emt 0:01:06]} ({Better is} 35... Bb3 $1 $14) 36. b4 $1 {[%emt 0:01:29]} Kf7 {[%emt 0:04:30]} 37. b5 $1 {[%emt 0:00:03]} Be4 {[%emt 0:00:45]} 38. c6 {[%emt 0:00:42] Inhibits Nd7.} bxc6 {[%emt 0:00:32] Loses the game.} (38... Ne8 $16 39. Ra1 (39. Ra7 Nd6 $16) 39... Bd5) 39. b6 $18 {[%emt 0:00:15]} Nd7 {[%emt 0:02:59] [#]} 40. b7 {[%emt 0:00:04]} c5 {[%emt 0:01:47] [#]} 41. Rxc5 $3 {[%emt 0:30:26][%mdl 576] Deflection, Promotion} Nxc5 {[%emt 0:30:05]} (41... Nb8 $142 42. Rc8 Na6) (41... Kf6 42. Rc7) 42. b8=Q {[%emt 0:00:06]} Nd7 {[%emt 0:00:17]} 43. Qf4+ {[%emt 0:00:07]} Nf6 {[%emt 0:00:06]} 44. g4 {[%emt 0:00:06] Threatens to win with g5.} g5 {[%emt 0:00:11]} 45. Qxg5 {[%emt 0:00:04]} Bf3 {[%emt 0:00:04]} 46. h3 {[%emt 0:00:06] aiming for Qf4.} h5 {[%emt 0:00:06]} 47. gxh5 {[%emt 0:00:52]} Bxh5 {[%emt 0:00:05]} 48. Kg2 {[%emt 0:00:05] White wants to mate with Qe5.} Bg6 {[%emt 0:00:07]} 49. f3 {[%emt 0:00:08] Threatening mate with Kg3.} Nh5 {[%emt 0:00:09]} 50. Kf2 {[%emt 0:00:06] White mates.} Nf6 {[%emt 0:00:12]} 51. Ke3 {[%emt 0:00:06]} Nh7 {[%emt 0:00:05]} 52. Qd5+ {[%emt 0:00:04]} Kg7 {[%emt 0:00:05]} 53. Kf4 {[%emt 0:00:28]} Kh6 {[%emt 0:00:07]} 54. Qd6 {[%emt 0:00:25]} Kh5 {[%emt 0:00:08]} 55. Qe7 {[%emt 0:00:55]} Kh6 {[%emt 0:00:08]} 56. h4 {[%emt 0:00:30][%cal Bh3h4,Bh4h5,Bh5h6][%mdl 32]} Kh5 {[%emt 0:00:11]} 57. Qe5+ {[%emt 0:00:16]} Kh6 {[%emt 0:00:06]} 58. Kg4 {[%emt 0:00:05]} Bf7 {[%emt 0:01:05]} 59. h5 {[%emt 0:00:17]} Bg8 {[%emt 0:00:09]} 60. Qd6+ {[%emt 0:00:18]} Kg7 {[%emt 0:00:07]} 61. h6+ {[%emt 0:00:06]} Kf7 {[%emt 0:00:07]} 62. Qd7+ {[%emt 0:00:24] Weighted Error Value: White=0.08 (flawless) /Black=0.47} 1-0

[Event "Israel-ch Semi-final 2022"]
[Site "Ramat Gan"]
[Date "2022.06.20"]
[Round "7.3"]
[White "Aharonovich, Itamar"]
[Black "Uritsky, Yonathan"]
[Result "1-0"]
[ECO "A58"]
[WhiteElo "2324"]
[BlackElo "2072"]
[Annotator "TA"]
[PlyCount "117"]
[EventDate "2022.05.09"]
[EventType "swiss"]
[EventCountry "ISR"]
[SourceTitle "playchess.com"]
[Source "ChessBase"]
[SourceQuality "1"]
[TimeControl "40/5400+30:1800+30"]

{[%evp 22,117,60,66,69,52,68,53,54,47,92,83,70,51,111,82,107,97,152,149,192,208,252,184,187,191,199,194,197,191,295,295,284,266,286,283,381,361,328,312,383,386,385,245,322,306,401,272,247,188,378,371,333,277,272,230,287,287,287,285,285,285,285,206,1336,1404,1304,1216,1126,1026,1188,1092,1084,1080,933,964,616,515,4887,4887,4127,4179,2585,1268,2574,1796,1257,1060,6070,5822,5449,1929,2521,5057,5065,4134,1456,1181]} 1. d4 {[%emt 0:00:04]} Nf6 {[%emt 0:00:11]} 2. c4 {[%emt 0:00:09][%cal Bc2c4,Bc4b5,Bb5a6][%mdl 32]} g6 {[%emt 0:00:12]} 3. g3 {[%emt 0:00:22]} c5 {[%emt 0:01:19]} 4. d5 {[%emt 0:00:12]} b5 {[%emt 0:00:13]} 5. cxb5 {[%emt 0:00:02]} a6 {[%emt 0:00:16]} 6. bxa6 {[%emt 0:00:07]} Bg7 {[%emt 0:00:24]} 7. Nc3 {[%emt 0:00:07]} O-O {[%emt 0:01:05]} 8. Bg2 {[%emt 0:00:20]} d6 {[%emt 0:00:31]} 9. Nf3 {[%emt 0:00:18]} Nbd7 {[%emt 0:00:58]} 10. O-O {[%emt 0:01:59]} Bxa6 {[%emt 0:00:56]} 11. Rb1 {[%emt 0:00:07]} Qa5 {[%emt 0:05:45]} 12. Bd2 {[%emt 0:00:20]} Rfb8 {[%emt 0:02:19] A58: Benko/Volga Gambit: Lines with 5 bxa6.} 13. a4 {[%emt 0:00:32]} Qc7 {[%emt 0:02:22]} 14. b3 {[%emt 0:05:00] Prevents Bc4.} Rb7 {[%emt 0:02:42] White is slightly better.} 15. Qc2 {[%emt 0:02:07]} Nb6 {[%emt 0:05:56]} 16. Nh4 {[%emt 0:10:59]} (16. Rfc1 {keeps more tension.} Nbxd5 17. Nxd5 Nxd5 18. Ng5) 16... Rab8 {[%emt 0:01:18] [#]} 17. Rfd1 $146 {[%emt 0:01:45]} ({Predecessor:} 17. Rfe1 Nfd7 18. f4 Nc8 19. e3 Ndb6 20. Rec1 Qd7 21. a5 Na8 22. Nf3 Nc7 23. e4 {0-1 (49) Cmilyte,V (2464)-Golubenko,V (2316) Heraklion 2007}) 17... Nc8 {[%emt 0:02:20] White now steadily converts the win.} (17... Nbd7 $14) 18. Be1 {[%emt 0:03:20] White is more active.} Nd7 {[%emt 0:07:14]} 19. Nf3 {[%emt 0:01:01]} Rb6 {[%emt 0:06:22]} ({Black should play} 19... Ne5) 20. Na2 $16 {[%emt 0:06:40]} Qb7 {[%emt 0:01:50][%cal Rb6b3]} 21. b4 {[%emt 0:01:07]} cxb4 {[%emt 0:02:30]} 22. Rxb4 {[%emt 0:00:29]} Nc5 {[%emt 0:00:48]} 23. Nd4 {[%emt 0:10:18]} Bxd4 {[%emt 0:01:32]} 24. Rdxd4 {[%emt 0:00:11]} Qd7 {[%emt 0:00:02]} 25. h4 {[%emt 0:06:26][%cal Bh2h4,Bh4h5][%mdl 32]} Rxb4 {[%emt 0:01:31]} (25... Qf5 $142 26. Qxf5 gxf5) 26. Nxb4 $18 {[%emt 0:00:53]} Bb7 {[%emt 0:03:44]} 27. Nc6 {[%emt 0:09:33]} Bxc6 {[%emt 0:00:08]} 28. dxc6 {[%emt 0:00:06]} Qc7 {[%emt 0:02:28]} 29. h5 {[%emt 0:05:03] hxg6 is the strong threat.} e5 {[%emt 0:01:06]} 30. Rc4 {[%emt 0:08:57]} Ne7 {[%emt 0:02:59]} 31. Bb4 {[%emt 0:01:42]} Ne6 {[%emt 0:01:44]} 32. Ba3 {[%emt 0:07:53] A strong pair of Bishops.} Nd4 {[%emt 0:00:53]} 33. Qd1 {[%emt 0:00:47]} Rd8 {[%emt 0:07:07]} 34. hxg6 {[%emt 0:05:33]} hxg6 {[%emt 0:00:08]} 35. e3 {[%emt 0:04:39][%cal Be2e3,Be3e4,Be4d5][%mdl 32]} Ne6 {[%emt 0:00:02]} (35... Ndxc6 36. Bxc6 Nxc6) 36. Bd5 {[%emt 0:03:07]} Kg7 {[%emt 0:02:39]} 37. a5 {[%emt 0:03:09]} Nc5 {[%emt 0:02:52]} 38. Qf3 {[%emt 0:00:36]} ({But not} 38. Bxc5 $6 dxc5 39. Rxc5 Qd6 $16) 38... f5 {[%emt 0:00:40]} 39. Bxc5 {[%emt 0:03:12]} dxc5 {[%emt 0:00:01]} 40. e4 {[%emt 0:00:31]} ({Weaker is} 40. Rxc5 Rxd5 41. Rxd5 Qxc6 $15) 40... Qxa5 {[%emt 0:02:21] ( -> ...Qa1+)} 41. Qc3 {[%emt 0:02:02] Prevents Qa1+.} Qxc3 {[%emt 0:02:47]} 42. Rxc3 {[%emt 0:00:23]} Nxd5 {[%emt 0:03:40]} (42... fxe4 43. Bxe4 Rd4) 43. exd5 {[%emt 0:00:12][%mdl 4096] Endgame White wants to mate with c7. KR-KR. White is clearly winning.} Kf6 {[%emt 0:00:18]} 44. Rxc5 {[%emt 0:05:37][%cal Od5d6] Threatening mate with d6!} Ke7 {[%emt 0:00:24]} 45. c7 {[%emt 0:02:00]} Rc8 {[%emt 0:00:01]} 46. Rc6 {[%emt 0:00:29]} Kd7 {[%emt 0:00:02]} 47. Rxg6 {[%emt 0:00:45]} Rxc7 {[%emt 0:00:07]} 48. Re6 {[%emt 0:02:51]} Rc1+ {[%emt 0:03:24]} 49. Kg2 {[%emt 0:00:06]} Re1 {[%emt 0:00:03]} (49... e4 $142 50. Rf6 Rc2 51. Rxf5 e3) 50. f4 {[%emt 0:00:58]} e4 {[%emt 0:00:14]} 51. Re5 {[%emt 0:01:10]} Re2+ {[%emt 0:03:28]} 52. Kf1 {[%emt 0:02:32]} Re3 {[%emt 0:01:35] [#]} 53. Kf2 $1 {[%emt 0:00:10]} Rd3 {[%emt 0:00:22]} 54. Rxf5 {[%emt 0:00:17] aiming for g4.} Kd6 {[%emt 0:00:23]} 55. Re5 {[%emt 0:01:09]} Rd2+ {[%emt 0:00:12]} 56. Kf1 {[%emt 0:02:51]} (56. Ke3 $142 Rd3+ 57. Kxe4 Rxg3 58. Re6+ Kd7 59. f5) 56... Rd3 {[%emt 0:01:10] [#]} 57. Kg2 $1 {[%emt 0:00:23]} e3 {[%emt 0:00:08]} 58. Kf3 {[%emt 0:00:38]} e2+ {[%emt 0:00:02]} 59. Kf2 {[%emt 0:15:44] Weighted Error Value: White=0.20 (precise) /Black=0.38} 1-0